fUSD/lending_fUSD_20250806
["ID","MTS","AMOUNT","RATE_DAILY","PERIOD"]
[377684634,1754489522079,-774.86,0.00039304,30]
[377684635,1754489522090,-400.0,0.00039304,30]
[377684636,1754489522102,-400.0,0.00039304,30]
[377684637,1754489522112,-594.04,0.00039304,30]
[377684638,1754489522121,-400.0,0.00039304,30]
[377684639,1754489522132,-473.32,0.00039304,30]
[377684640,1754489522143,-155.87949925,0.00039304,30]
[377684641,1754489522155,-400.0,0.00039304,30]
[377684642,1754489522166,-774.9860749,0.00039304,30]
[377684643,1754489522177,-400.0,0.00039304,30]
[377684644,1754489522187,-400.0,0.00039304,30]
[377684645,1754489522197,-594.04,0.00039304,30]
[377684646,1754489522207,-473.32,0.00039304,30]
[377684647,1754489522217,-400.0,0.00039304,30]
[377684648,1754489522227,-400.0,0.00039304,30]
[377684649,1754489522236,-594.04,0.00039304,30]
[377684650,1754489522246,-473.32,0.00039304,30]
[377684651,1754489522258,-400.0,0.00039304,30]
[377684652,1754489522272,-400.0,0.00039304,30]
[377684653,1754489522282,-400.0,0.00039304,30]
[377684654,1754489522292,-594.04,0.00039304,30]
[377684655,1754489522302,-400.0,0.00039304,30]
[377684656,1754489522313,-473.32,0.00039304,30]
[377684657,1754489522323,-400.0,0.00039304,30]
[377684658,1754489522332,-400.0,0.00039304,30]
[377684659,1754489522344,-400.0,0.00039304,30]
[377684660,1754489522357,-594.04,0.00039304,30]
[377684661,1754489522367,-473.32,0.00039304,30]
[377684662,1754489522376,-400.0,0.00039304,30]
[377684663,1754489522386,-400.0,0.00039304,30]
[377684664,1754489522396,-400.0,0.00039304,30]
[377684665,1754489522408,-400.0,0.00039304,30]
[377684666,1754489522419,-594.04,0.00039304,30]
[377684667,1754489522428,-473.32,0.00039304,30]
[377684668,1754489522438,-400.0,0.00039304,30]
[377684669,1754489522448,-400.0,0.00039304,30]
[377684670,1754489522458,-400.0,0.00039304,30]
[377684671,1754489522468,-291.33042272,0.00039304,30]
[377684672,1754489522478,-594.04,0.00039304,30]
[377684673,1754489522488,-473.32,0.00039304,30]
[377684674,1754489522499,-400.0,0.00039304,30]
[377684675,1754489522509,-400.0,0.00039304,30]
[377684676,1754489522519,-400.0,0.00039304,30]
[377684677,1754489522531,-594.04,0.00039304,30]
[377684678,1754489522540,-473.32,0.00039304,30]
[377684679,1754489522550,-400.0,0.00039304,30]
[377684680,1754489522560,-458.43,0.00039304,30]
[377684681,1754489522570,-400.0,0.00039304,30]
[377684682,1754489522583,-400.0,0.00039304,30]
[377684683,1754489522592,-400.0,0.00039304,30]
[377684684,1754489522603,-594.04,0.00039304,30]
[377684685,1754489522613,-473.32,0.00039304,30]
[377684686,1754489522622,-324.21896126,0.00039304,30]
[377684687,1754489522633,-458.43,0.00039304,30]
[377684688,1754489522643,-400.0,0.00039304,30]
[377684689,1754489522653,-400.0,0.00039304,30]
[377684690,1754489522663,-400.0,0.00039304,30]
[377684691,1754489522673,-473.32,0.00039304,30]
[377684692,1754489522682,-400.0,0.00039304,30]
[377684693,1754489522692,-170.14663861,0.00039304,30]
[377684694,1754489522703,-400.0,0.00039304,30]
[377684695,1754489522716,-473.32,0.00039304,30]
[377684696,1754489522727,-400.0,0.00039304,30]
[377684697,1754489522739,-270.78624546,0.00039304,30]
[377684698,1754489522749,-400.0,0.00039304,30]
[377684699,1754489522760,-473.32,0.00039304,30]
[377684700,1754489522771,-400.0,0.00039304,30]
[377684701,1754489522780,-400.0,0.00039304,30]
[377684702,1754489522790,-400.0,0.00039304,30]
[377684703,1754489522803,-458.43,0.00039304,30]
[377684704,1754489522813,-400.0,0.00039304,30]
[377684705,1754489522822,-1278.06,0.00039304,30]
[377684706,1754489522832,-400.0,0.00039304,30]
[377684707,1754489522842,-830.68,0.00039304,30]
[377684708,1754489522853,-830.68,0.00039304,30]
[377684709,1754489522863,-400.0,0.00039304,30]
[377684710,1754489522872,-400.0,0.00039304,30]
[377684711,1754489522882,-830.68,0.00039304,30]
[377684712,1754489522894,-458.43,0.00039304,30]
[377684713,1754489522904,-168.46896709,0.00039304,30]
[377684714,1754489522914,-1278.06,0.00039304,30]
[377684715,1754489522924,-830.68,0.00039304,30]
[377684716,1754489522935,-400.0,0.00039304,30]
[377684717,1754489522946,-1278.06,0.00039304,30]
[377684718,1754489522956,-830.68,0.00039304,30]
[377684719,1754489522966,-400.0,0.00039304,30]
[377684720,1754489522975,-1278.06,0.00039304,30]
[377684721,1754489522985,-473.32,0.00039304,30]
[377684722,1754489522995,-400.0,0.00039304,30]
[377684723,1754489523004,-499.14,0.00039304,30]
[377684724,1754489523014,-594.04,0.00039304,30]
[377684725,1754489523024,-199.38518322,0.00039304,30]
[377684726,1754489523299,-134.40481678,0.00039304,30]
[377684727,1754489523311,-368.61423069,0.00039304,30]
[377684728,1754489523324,-399.6901,0.00039304,30]
[377684729,1754489523340,-62.37566931,0.00039304,30]
[377684730,1754489523352,-1278.06,0.00039304,30]
[377684731,1754489523362,-473.32,0.00039304,30]
[377684732,1754489523372,-499.14,0.00039304,30]
[377684733,1754489523382,-400.0,0.00039304,30]
[377684734,1754489523391,-458.43,0.00039304,30]
[377684735,1754489523400,-594.04,0.00039304,30]
[377684736,1754489523410,-830.68,0.00039304,30]
[377684737,1754489523420,-1278.06,0.00039304,30]
[377684738,1754489523430,-400.0,0.00039304,30]
[377684739,1754489523440,-499.14,0.00039304,30]
[377684740,1754489523450,-458.43,0.00039304,30]
[377684741,1754489523459,-473.32,0.00039304,30]
[377684742,1754489523470,-594.04,0.00039304,30]
[377684743,1754489523480,-1278.06,0.00039304,30]
[377684744,1754489523490,-830.68,0.00039304,30]
[377684745,1754489523501,-136.59607847,0.00039304,30]
[377684746,1754489523571,-263.40392153,0.00039304,30]
[377684747,1754489523581,-458.43,0.00039304,30]
[377684748,1754489523591,-473.32,0.00039304,30]
[377684749,1754489523604,-499.14,0.00039304,30]
[377684750,1754489523614,-594.04,0.00039304,30]
[377684751,1754489523624,-830.68,0.00039304,30]
[377684752,1754489523634,-1278.06,0.00039304,30]
[377684753,1754489523644,-400.0,0.00039304,30]
[377684754,1754489523653,-499.14,0.00039304,30]
[377684755,1754489523663,-458.43,0.00039304,30]
[377684756,1754489523673,-473.32,0.00039304,30]
[377684757,1754489523683,-594.04,0.00039304,30]
[377684758,1754489523694,-830.68,0.00039304,30]
[377684759,1754489523703,-1278.06,0.00039304,30]
[377684760,1754489523713,-400.0,0.00039304,30]
[377684761,1754489523723,-499.14,0.00039304,30]
[377684762,1754489523733,-473.32,0.00039304,30]
[377684763,1754489523743,-830.68,0.00039304,30]
[377684764,1754489523753,-1278.06,0.00039304,30]
[377684765,1754489523763,-400.0,0.00039304,30]
[377684766,1754489523772,-499.14,0.00039304,30]
[377684767,1754489523784,-473.32,0.00039304,30]
[377684768,1754489523794,-458.43,0.00039304,30]
[377684769,1754489523803,-1278.06,0.00039304,30]
[377684770,1754489523813,-400.0,0.00039304,30]
[377684771,1754489523823,-594.04,0.00039304,30]
[377684772,1754489523833,-356.15198247,0.00039304,30]
[377684773,1754489523868,-102.27801753,0.00039304,30]
[377684774,1754489523878,-418.49171961,0.00039304,30]
[377684775,1754489523888,-499.14,0.00039304,30]
[377684776,1754489523898,-400.0,0.00039304,30]
[377684777,1754489523908,-1278.06,0.00039304,30]
[377684778,1754489523918,-594.04,0.00039304,30]
[377684779,1754489523928,-458.43,0.00039304,30]
[377684780,1754489523939,-473.32,0.00039304,30]
[377684781,1754489523949,-499.14,0.00039304,30]
[377684782,1754489523959,-830.68,0.00039304,30]
[377684783,1754489523968,-400.0,0.00039304,30]
[377684784,1754489523978,-594.13,0.00039304,30]
[377684785,1754489523987,-458.43,0.00039304,30]
[377684786,1754489523996,-473.32,0.00039304,30]
[377684787,1754489524006,-499.14,0.00039304,30]
[377684788,1754489524016,-400.0,0.00039304,30]
[377684789,1754489524026,-822.53163619,0.00039304,30]
[377684795,1754490195598,44.57,0.00013699,2]
[377684796,1754490195628,112.51,0.00013699,2]
[377684800,1754490308200,9271.00626925,0.00019,2]
[377684838,1754490631948,-352.97322033,0.00018904,2]
[377684839,1754490631971,-2463.13792067,0.00018904,2]
[377684840,1754490631981,-352.97322054,0.00018998,2]
[377684841,1754490631993,-584.70806497,0.00018998,2]
[377684842,1754490632009,-262.31871449,0.00018998,2]
[377684843,1754490632019,-225.0,0.00018999,2]
[377684844,1754490632029,-237.12161368,0.00018999,2]
[377684845,1754490632038,-500.0,0.00018999,2]
[377684846,1754490632050,-480.19779152,0.00018999,2]
[377684847,1754490632059,-150.0,0.00018999,2]
[377684848,1754490632069,-465912.02255213,0.00019,2]
[377684849,1754490632078,-1000.0,0.00020794,4]
[377684850,1754490632088,-513.0,0.00025463,2]
[377684851,1754490632097,-158.2091804,0.00027066,2]
[377684852,1754490632107,-151.13,0.00027166,2]
[377684853,1754490632116,-19889.02334268,0.0002739,2]
[377684854,1754490632126,-172.81,0.00027995,2]
[377684855,1754490632135,-151.13,0.000291,2]
[377684856,1754490632144,-783.92800897,0.0003,5]
[377684857,1754490632154,-200.72251034,0.0003013,5]
[377684858,1754490632164,-158.20918039,0.00030275,2]
[377684859,1754490632173,-513.0,0.00030397,10]
[377684860,1754490632184,-151.13,0.00031034,2]
[377684861,1754490632194,-176.13,0.00032528,2]
[377684862,1754490632203,-1000.0,0.00032679,2]
[377684863,1754490632213,-500.0,0.00032877,7]
[377684864,1754490632222,-500.0,0.00032877,7]
[377684865,1754490632231,-490.60237189,0.00032877,7]
[377684866,1754490632241,-186.605,0.00032904,34]
[377684867,1754490632251,-218.07,0.00032904,30]
[377684868,1754490632260,-151.13,0.00032968,2]
[377684869,1754490632270,-158.20918039,0.00033483,2]
[377684871,1754490632279,-489.43761001,0.00033612,16]
[377684873,1754490632288,-299.99,0.00033844,30]
[377684875,1754490632299,-999.99,0.00033844,2]
[377684877,1754490632308,-9999.99,0.00033844,2]
[377684879,1754490632317,-9999.99,0.00033844,2]
[377684881,1754490632326,-9999.99,0.00033844,2]
[377684883,1754490632335,-150.99,0.00033844,2]
[377684885,1754490632344,-2191.93767412,0.00034,2]
[377684887,1754490632354,-5739.4240684,0.00034,2]
[377684889,1754490632363,-976.96,0.00034,2]
[377684891,1754490632372,-150.0,0.000347,30]
[377684893,1754490632382,-151.13,0.00034902,2]
[377684894,1754490632391,-293.44833021,0.00034904,2]
[377684896,1754490632400,-240.0,0.00035,5]
[377684898,1754490632410,-155.78445296,0.00035,30]
[377684900,1754490632419,-395.12,0.00035017,2]
[377684902,1754490632429,-666.0,0.00035032,3]
[377684904,1754490632438,-15402.89,0.00035062,2]
[377684906,1754490632447,-185.04,0.00035091,2]
[377684908,1754490632456,-175.0,0.00035118,7]
[377684910,1754490632466,-513.0,0.00035331,18]
[377684912,1754490632475,-150.0,0.00035359,4]
[377684915,1754490632484,-278.223,0.00035455,2]
[377684918,1754490632493,-3268.6187052,0.00035499,2]
[377684921,1754490632503,-500.00001,0.00035616,30]
[377684923,1754490632512,-211.52696026,0.00035797,2]
[377684925,1754490632521,-1350.23854086,0.000359,120]
[377684927,1754490632530,-439.52901049,0.0003599,3]
[377684929,1754490632540,-693.52,0.00036,5]
[377684931,1754490632551,-65114.73063954,0.00036,2]
[377684932,1754490632560,-553.01117571,0.00036191,2]
[377684934,1754490632570,-1019.068,0.0003643,2]
[377684937,1754490632579,-1310.353,0.0003643,2]
[377684938,1754490632590,-2024.0,0.0003643,2]
[377684939,1754490632600,-663.587,0.0003643,2]
[377684940,1754490632609,-564.0,0.0003643,2]
[377684942,1754490632619,-1651.0,0.0003643,2]
[377684944,1754490632628,-1169.0,0.0003643,2]
[377684945,1754490632638,-1251.0,0.0003643,2]
[377684946,1754490632647,-6070.0,0.0003643,2]
[377684947,1754490632656,-4137.0,0.0003643,2]
[377684948,1754490632665,-749.14,0.000365,2]
[377684949,1754490632675,-693.52,0.00036547,6]
[377684950,1754490632684,-158.20918039,0.00036692,2]
[377684951,1754490632694,-1000.0,0.00036763,2]
[377684952,1754490632703,-151.13,0.00036836,2]
[377684953,1754490632712,-693.52,0.00037095,7]
[377684954,1754490632721,-500.0,0.00037259,7]
[377684955,1754490632731,-500.0,0.00037259,7]
[377684956,1754490632740,-176.13,0.00037407,2]
[377684957,1754490632750,-693.52,0.00037643,8]
[377684958,1754490632759,-300.0,0.000377,13]
[377684959,1754490632768,-600.0,0.000378,13]
[377684960,1754490632778,-19999.99,0.00037873,2]
[377684961,1754490632787,-900.0,0.000379,13]
[377684962,1754490632799,-160.0,0.00038,60]
[377684963,1754490632808,-160.0,0.00038,90]
[377684964,1754490632818,-160.0,0.00038,120]
[377684965,1754490632827,-160.0,0.00038,45]
[377684966,1754490632837,-160.0,0.00038,30]
[377684967,1754490632847,-500.0,0.00038,120]
[377684968,1754490632856,-500.0,0.00038081,7]
[377684969,1754490632866,-693.52,0.00038191,9]
[377684970,1754490632876,-850.9165,0.00038246,2]
[377684971,1754490632885,-2712.02141644,0.00038312,10]
[377684972,1754490632895,-1758.11604196,0.00038336,4]
[377684973,1754490632905,-3076.70307343,0.00038346,4]
[377684974,1754490632915,-211.0,0.00038356,5]
[377684975,1754490632924,-1407.62,0.00038356,14]
[377684976,1754490632934,-400.0,0.00038356,14]
[377684977,1754490632944,-400.0,0.00038356,14]
[377684978,1754490632954,-400.0,0.00038356,14]
[377684979,1754490632963,-400.0,0.00038356,14]
[377684980,1754490632972,-400.0,0.00038356,14]
[377684981,1754490632982,-400.0,0.00038356,14]
[377684982,1754490632992,-400.0,0.00038356,14]
[377684983,1754490633001,-400.0,0.00038356,14]
[377684984,1754490633011,-400.0,0.00038356,14]
[377684985,1754490633020,-222.00113226,0.00038356,14]
[377684986,1754490633030,-854.85,0.00038356,14]
[377684987,1754490633041,-452.13,0.00038356,14]
[377684988,1754490633052,-400.0,0.00038356,14]
[377684989,1754490633062,-400.0,0.00038356,14]
[377684990,1754490633071,-400.0,0.00038356,14]
[377684991,1754490633081,-865.3,0.00038356,14]
[377684992,1754490633091,-400.0,0.00038356,14]
[377684993,1754490633101,-400.0,0.00038356,14]
[377684994,1754490633111,-534.71798598,0.00038356,14]
[377684995,1754490633120,-496.52,0.00038356,14]
[377684996,1754490633130,-1237.76,0.00038356,14]
[377684997,1754490633140,-400.0,0.00038356,14]
[377684998,1754490633149,-1606.17,0.00038356,14]
[377684999,1754490633158,-1093.37,0.00038356,14]
[377685000,1754490633168,-400.0,0.00038356,14]
[377685001,1754490633178,-400.0,0.00038356,14]
[377685002,1754490633190,-400.0,0.00038356,14]
[377685003,1754490633200,-523.53,0.00038356,14]
[377685004,1754490633209,-400.0,0.00038356,14]
[377685005,1754490633219,-438.94,0.00038356,14]
[377685006,1754490633228,-917.47,0.00038356,14]
[377685007,1754490633239,-400.0,0.00038356,14]
[377685008,1754490633249,-542.13,0.00038356,14]
[377685009,1754490633259,-400.0,0.00038356,14]
[377685010,1754490633267,-1694.58,0.00038356,14]
[377685011,1754490633277,-400.0,0.00038356,14]
[377685012,1754490633286,-400.0,0.00038356,14]
[377685013,1754490633296,-400.0,0.00038356,14]
[377685014,1754490633305,-900.42,0.00038356,14]
[377685015,1754490633315,-1304.33,0.00038356,14]
[377685016,1754490633324,-400.0,0.00038356,14]
[377685017,1754490633334,-862.84,0.00038356,14]
[377685018,1754490633343,-400.0,0.00038356,14]
[377685019,1754490633352,-400.0,0.00038356,14]
[377685020,1754490633362,-400.0,0.00038356,14]
[377685021,1754490633371,-400.0,0.00038356,14]
[377685022,1754490633380,-1857.47,0.00038356,14]
[377685023,1754490633390,-400.0,0.00038356,14]
[377685024,1754490633400,-400.0,0.00038356,14]
[377685025,1754490633410,-1083.63,0.00038356,14]
[377685026,1754490633420,-400.0,0.00038356,14]
[377685027,1754490633430,-1221.98,0.00038356,14]
[377685028,1754490633440,-400.0,0.00038356,14]
[377685029,1754490633449,-400.0,0.00038356,14]
[377685030,1754490633459,-449.3,0.00038356,14]
[377685031,1754490633469,-1901.21,0.00038356,14]
[377685032,1754490633479,-1590.77,0.00038356,14]
[377685033,1754490633489,-400.0,0.00038356,14]
[377685034,1754490633499,-400.0,0.00038356,14]
[377685035,1754490633509,-465.95,0.00038356,14]
[377685036,1754490633518,-1033.7,0.00038356,14]
[377685037,1754490633527,-1306.21,0.00038356,14]
[377685038,1754490633537,-431.78,0.00038356,14]
[377685039,1754490633547,-400.53604925,0.00038356,14]
[377685040,1754490633557,-400.0,0.00038356,14]
[377685041,1754490633566,-606.23,0.00038356,14]
[377685042,1754490633575,-400.0,0.00038356,14]
[377685043,1754490633586,-400.0,0.00038356,14]
[377685044,1754490633596,-564.46,0.00038356,14]
[377685045,1754490633607,-743.78,0.00038356,14]
[377685046,1754490633616,-2900.13,0.00038356,14]
[377685047,1754490633625,-400.0,0.00038356,14]
[377685048,1754490633635,-400.0,0.00038356,14]
[377685049,1754490633644,-605.07,0.00038356,14]
[377685050,1754490633654,-400.0,0.00038356,14]
[377685051,1754490633664,-1317.75,0.00038356,14]
[377685052,1754490633674,-1747.08,0.00038356,14]
[377685053,1754490633683,-990.39,0.00038356,14]
[377685054,1754490633693,-794.09,0.00038356,14]
[377685055,1754490633703,-400.0,0.00038356,14]
[377685056,1754490633712,-2202.49,0.00038356,14]
[377685057,1754490633721,-400.0,0.00038356,14]
[377685058,1754490633731,-400.0,0.00038356,14]
[377685059,1754490633741,-642.21,0.00038356,14]
[377685060,1754490633750,-436.49649776,0.00038356,14]
[377685061,1754490633760,-478.74,0.00038356,14]
[377685062,1754490633769,-892.43,0.00038356,14]
[377685063,1754490633779,-400.0,0.00038356,14]
[377685064,1754490633788,-2646.66,0.00038356,14]
[377685065,1754490633798,-1622.52,0.00038356,14]
[377685066,1754490633808,-400.0,0.00038356,14]
[377685067,1754490633817,-400.0,0.00038356,14]
[377685068,1754490633827,-2804.35,0.00038356,14]
[377685069,1754490633837,-400.0,0.00038356,14]
[377685070,1754490633847,-2944.06,0.00038356,14]
[377685071,1754490633857,-400.0,0.00038356,14]
[377685072,1754490633867,-400.95918657,0.00038356,14]
[377685073,1754490633876,-708.9,0.00038356,14]
[377685074,1754490633886,-400.0,0.00038356,14]
[377685075,1754490633895,-400.0,0.00038356,14]
[377685076,1754490633905,-1488.61,0.00038356,14]
[377685077,1754490633914,-500.0,0.00038356,14]
[377685078,1754490633923,-500.0,0.00038356,14]
[377685079,1754490633932,-500.0,0.00038356,14]
[377685080,1754490633942,-500.0,0.00038356,14]
[377685081,1754490633952,-400.0,0.00038356,14]
[377685082,1754490633961,-2747.22,0.00038356,14]
[377685083,1754490633971,-502.2,0.00038356,14]
[377685084,1754490633981,-400.0,0.00038356,14]
[377685085,1754490633990,-502.2,0.00038356,14]
[377685086,1754490634000,-963.97,0.00038356,14]
[377685087,1754490634010,-502.2,0.00038356,14]
[377685088,1754490634020,-502.2,0.00038356,14]
[377685089,1754490634030,-502.2,0.00038356,14]
[377685090,1754490634039,-502.2,0.00038356,14]
[377685091,1754490634050,-706.1,0.00038356,14]
[377685092,1754490634060,-991.12,0.00038356,14]
[377685093,1754490634070,-400.0,0.00038356,14]
[377685094,1754490634081,-400.0,0.00038356,14]
[377685095,1754490634090,-2304.45,0.00038356,14]
[377685096,1754490634100,-400.0,0.00038356,14]
[377685097,1754490634109,-1002.32,0.00038356,14]
[377685098,1754490634119,-1732.35,0.00038356,14]
[377685099,1754490634128,-1353.59,0.00038356,14]
[377685100,1754490634138,-400.0,0.00038356,14]
[377685101,1754490634147,-1028.15,0.00038356,14]
[377685102,1754490634157,-400.0,0.00038356,14]
[377685103,1754490634166,-1836.82,0.00038356,14]
[377685104,1754490634176,-671.08,0.00038356,14]
[377685105,1754490634187,-400.0,0.00038356,14]
[377685106,1754490634197,-477.1,0.00038356,14]
[377685107,1754490634207,-1404.23,0.00038356,14]
[377685108,1754490634216,-1028.06,0.00038356,14]
[377685109,1754490634226,-1381.59,0.00038356,14]
[377685110,1754490634235,-400.0,0.00038356,14]
[377685111,1754490634245,-1301.15,0.00038356,14]
[377685112,1754490634254,-530.61,0.00038356,14]
[377685113,1754490634264,-400.0,0.00038356,14]
[377685114,1754490634273,-1645.22,0.00038356,14]
[377685115,1754490634282,-400.0,0.00038356,14]
[377685116,1754490634291,-742.14,0.00038356,14]
[377685117,1754490634303,-400.0,0.00038356,14]
[377685118,1754490634312,-400.0,0.00038356,14]
[377685119,1754490634321,-1355.01,0.00038356,14]
[377685120,1754490634331,-400.0,0.00038356,14]
[377685121,1754490634340,-300.0,0.00038356,14]
[377685122,1754490634350,-400.0,0.00038356,14]
[377685123,1754490634359,-400.0,0.00038356,14]
[377685124,1754490634368,-400.0,0.00038356,14]
[377685125,1754490634377,-2822.93,0.00038356,14]
[377685126,1754490634387,-1163.44,0.00038356,14]
[377685127,1754490634396,-400.0,0.00038356,14]
[377685128,1754490634405,-400.0,0.00038356,14]
[377685129,1754490634415,-873.76,0.00038356,14]
[377685130,1754490634425,-773.44,0.00038356,14]
[377685131,1754490634434,-789.4,0.00038356,14]
[377685132,1754490634444,-2003.76,0.00038356,14]
[377685133,1754490634453,-240.59677187,0.00038356,14]
[377685134,1754490634463,-400.0,0.00038356,14]
[377685135,1754490634472,-400.0,0.00038356,14]
[377685136,1754490634481,-400.0,0.00038356,14]
[377685137,1754490634490,-1041.66,0.00038356,14]
[377685138,1754490634501,-400.0,0.00038356,14]
[377685139,1754490634510,-400.0,0.00038356,14]
[377685140,1754490634520,-400.0,0.00038356,14]
[377685141,1754490634530,-2815.34,0.00038356,14]
[377685142,1754490634539,-2310.95,0.00038356,14]
[377685143,1754490634550,-766.25,0.00038356,14]
[377685144,1754490634559,-1810.12,0.00038356,14]
[377685145,1754490634569,-400.0,0.00038356,14]
[377685146,1754490634579,-2322.77,0.00038356,14]
[377685147,1754490634592,-400.0,0.00038356,14]
[377685148,1754490634601,-400.0,0.00038356,14]
[377685149,1754490634610,-400.0,0.00038356,14]
[377685150,1754490634619,-400.0,0.00038356,14]
[377685151,1754490634630,-2065.84,0.00038356,14]
[377685152,1754490634640,-400.0,0.00038356,14]
[377685153,1754490634650,-516.05921364,0.00038356,14]
[377685154,1754490634660,-871.32,0.00038356,14]
[377685155,1754490634671,-1938.44,0.00038356,14]
[377685156,1754490634681,-400.0,0.00038356,14]
[377685157,1754490634691,-2005.39,0.00038356,14]
[377685158,1754490634701,-409.39523126,0.00038356,14]
[377685159,1754490634711,-400.0,0.00038356,14]
[377685160,1754490634720,-400.0,0.00038356,2]
[377685161,1754490634729,-1731.77,0.00038356,14]
[377685162,1754490634739,-400.0,0.00038356,14]
[377685163,1754490634748,-400.0,0.00038356,14]
[377685164,1754490634758,-400.0,0.00038356,14]
[377685165,1754490634769,-400.0,0.00038356,14]
[377685166,1754490634780,-402.46029004,0.00038356,14]
[377685167,1754490634790,-754.83,0.00038356,14]
[377685168,1754490634802,-400.0,0.00038356,14]
[377685169,1754490634812,-550.61,0.00038356,14]
[377685170,1754490634822,-400.0,0.00038356,14]
[377685171,1754490634831,-400.0,0.00038356,14]
[377685172,1754490634840,-400.0,0.00038356,14]
[377685173,1754490634849,-400.0,0.00038356,14]
[377685174,1754490634859,-1134.3,0.00038356,14]
[377685175,1754490634867,-400.0,0.00038356,14]
[377685176,1754490634876,-400.0,0.00038356,14]
[377685177,1754490634884,-400.0,0.00038356,14]
[377685178,1754490634893,-400.0,0.00038356,14]
[377685179,1754490634903,-400.0,0.00038356,14]
[377685180,1754490634912,-1681.5,0.00038356,14]
[377685181,1754490634922,-454.78,0.00038356,14]
[377685182,1754490634932,-671.84,0.00038356,14]
[377685183,1754490634942,-400.0,0.00038356,14]
[377685184,1754490634952,-333.72977777,0.00038356,14]
[377685185,1754490634961,-465.73082988,0.00038356,14]
[377685186,1754490634971,-938.07,0.00038356,14]
[377685187,1754490634980,-1730.88,0.00038356,14]
[377685188,1754490634990,-1749.32,0.00038356,14]
[377685189,1754490634999,-400.0,0.00038356,14]
[377685190,1754490635008,-425.67,0.00038356,14]
[377685191,1754490635019,-1080.87,0.00038356,14]
[377685192,1754490635029,-504.69039722,0.00038356,15]
[377685193,1754490635038,-433.62,0.00038356,14]
[377685194,1754490635047,-500.0,0.00038356,2]
[377685195,1754490635060,-485.50901068,0.00038356,2]
[377685196,1754490635070,-559.12,0.00038356,14]
[377685197,1754490635079,-782.13,0.00038356,14]
[377685198,1754490635088,-481.19566783,0.00038356,14]
[377685199,1754490635098,-400.0,0.00038356,14]
[377685200,1754490635108,-400.0,0.00038356,14]
[377685201,1754490635117,-563.54,0.00038356,14]
[377685202,1754490635127,-952.78,0.00038356,14]
[377685203,1754490635137,-400.7,0.00038356,14]
[377685204,1754490635146,-400.0,0.00038356,14]
[377685205,1754490635155,-400.0,0.00038356,14]
[377685206,1754490635164,-400.0,0.00038356,14]
[377685207,1754490635173,-400.0,0.00038356,14]
[377685208,1754490635185,-487.54,0.00038356,14]
[377685209,1754490635194,-400.0,0.00038356,14]
[377685210,1754490635204,-400.0,0.00038356,14]
[377685211,1754490635213,-1637.3,0.00038356,14]
[377685212,1754490635223,-562.24,0.00038356,14]
[377685213,1754490635232,-400.0,0.00038356,14]
[377685214,1754490635242,-596.22,0.00038356,14]
[377685215,1754490635251,-1931.17,0.00038356,14]